[Event "WYCC 2018 G16"]
[Site "Halkidiki"]
[Date "2018.10.23"]
[Round "5"]
[White "Grigorieva, Yulia"]
[Black "Shanya Mishra"]
[Result "1-0"]
[ECO "D70"]
[WhiteElo "2112"]
[BlackElo "1924"]
[Annotator "NA"]
[PlyCount "91"]
[EventDate "2018.10.20"]
[EventType "swiss"]
[EventCountry "GRE"]
[SourceTitle "playchess.com"]
[Source "ChessBase"]
[SourceQuality "1"]
[TimeControl "40/5400+30:1800+30"]

1. d4 {[%emt 0:00:00]} d5 {[%emt 0:00:12]} 2. c4 {[%emt 0:00:17]} c6 {[%emt 0:00:21]} 3. Nf3 {[%emt 0:03:31]} Nf6 {[%emt 0:00:38]} 4. Nbd2 {[%emt 0:01:20]} Bf5 {[%emt 0:01:34]} 5. Nh4 {[%emt 0:01:54]} Be4 {[%emt 0:03:21]} 6. f3 {[%emt 0:11:02]} Bg6 {[%emt 0:01:43]} 7. e3 {[%emt 0:01:21]} e6 {[%emt 0:01:38]} 8. Nxg6 {[%emt 0:06:47]} hxg6 {[%emt 0:00:34]} 9. f4 {[%emt 0:04:38]} Nbd7 {[%emt 0:01:52]} 10. Nf3 {[%emt 0:05:30]} Ne4 {[%emt 0:02:39]} 11. Bd3 {[%emt 0:03:18]} Bb4+ {[%emt 0:06:21]} 12. Ke2 {[%emt 0:05:39]} Ndf6 {[%emt 0:04:22]} 13. Bd2 {[%emt 0:05:17]} Be7 {[%emt 0:02:32]} 14. Qc2 {[%emt 0:03:48]} c5 {[%emt 0:06:26]} 15. cxd5 {[%emt 0:06:45]} Qxd5 {[%emt 0:01:32]} 16. Qa4+ {[%emt 0:04:55]} Kf8 {[%emt 0:01:41]} 17. Rhc1 {[%emt 0:03:32]} g5 {[%emt 0:07:02]} 18. fxg5 {[%emt 0:07:18]} Nxg5 {[%emt 0:00:44]} 19. Qc4 {[%emt 0:02:50]} Nxf3 {[%emt 0:05:17]} 20. Qxd5 {[%emt 0:00:05]} exd5 {[%emt 0:00:54]} 21. Kxf3 {[%emt 0:00:48]} c4 {[%emt 0:00:11]} 22. Bc2 {[%emt 0:03:18]} Rxh2 {[%emt 0:03:25]} 23. Rh1 {[%emt 0:00:10]} Rxh1 {[%emt 0:01:10]} 24. Rxh1 {[%emt 0:00:02]} Kg8 {[%emt 0:00:08]} 25. e4 {[%emt 0:04:08]} Nxe4 {[%emt 0:01:04]} 26. Bxe4 {[%emt 0:00:06]} dxe4+ {[%emt 0:00:04]} 27. Kxe4 {[%emt 0:00:02]} Bf6 {[%emt 0:01:32]} 28. Bc3 {[%emt 0:03:53]} b5 {[%emt 0:03:35]} 29. d5 {[%emt 0:03:16]} Be7 {[%emt 0:03:19]} 30. Be5 {[%emt 0:02:43]} f6 {[%emt 0:00:20]} 31. Bc7 {[%emt 0:03:14]} Bd8 {[%emt 0:02:49]} 32. Bxd8 {[%emt 0:01:16]} Rxd8 {[%emt 0:00:04]} 33. Kd4 {[%emt 0:00:13]} Kf7 {[%emt 0:02:21]} 34. Re1 {[%emt 0:03:08]} Re8 {[%emt 0:04:18]} 35. Rxe8 {[%emt 0:00:25]} Kxe8 {[%emt 0:00:05]} 36. Kc5 {[%emt 0:00:34]} a6 {[%emt 0:00:40]} 37. a3 {[%emt 0:00:34]} Kd7 {[%emt 0:00:32]} 38. Kb6 {[%emt 0:00:40]} f5 {[%emt 0:14:59]} 39. Kxa6 {[%emt 0:00:15]} f4 {[%emt 0:00:22]} 40. Kxb5 {[%emt 0:00:00]} g5 {[%emt 0:00:00]} 41. Kxc4 {[%emt 0:02:17]} g4 {[%emt 0:00:52]} 42. Kd3 {[%emt 0:01:28]} Kd6 {[%emt 0:00:27]} 43. Ke4 {[%emt 0:02:11]} f3 {[%emt 0:00:32]} 44. Ke3 {[%emt 0:00:07]} fxg2 {[%emt 0:00:21]} 45. Kf2 {[%emt 0:00:04]} Kxd5 {[%emt 0:00:07]} 46. Kxg2 {[%emt 0:00:08]} 1-0

[Event "WYCC 2018 G16"]
[Site "Halkidiki"]
[Date "2018.10.23"]
[Round "5"]
[White "Bulatova, Kamaliya"]
[Black "Zhang, Xiao"]
[Result "1/2-1/2"]
[ECO "D20"]
[WhiteElo "2108"]
[BlackElo "1980"]
[Annotator "NA"]
[PlyCount "140"]
[EventDate "2018.10.20"]
[EventType "swiss"]
[EventCountry "GRE"]
[SourceTitle "playchess.com"]
[Source "ChessBase"]
[SourceQuality "1"]
[TimeControl "40/5400+30:1800+30"]

1. d4 {[%emt 0:00:00]} d5 {[%emt 0:00:00]} 2. c4 {[%emt 0:00:00]} dxc4 {[%emt 0:00:00]} 3. e4 {[%emt 0:00:00]} e5 {[%emt 0:00:00]} 4. Nf3 {[%emt 0:00:00]} exd4 {[%emt 0:00:05]} 5. Bxc4 {[%emt 0:00:00] LiveBook: 993 Games} Bb4+ {[%emt 0:00:05]} 6. Nbd2 {[%emt 0:04:08]} Nc6 {[%emt 0:00:06]} 7. O-O {[%emt 0:00:55]} Nf6 {[%emt 0:00:08]} 8. e5 {[%emt 0:07:53]} Nd5 {[%emt 0:00:25]} 9. Ne4 {[%emt 0:02:53]} Bf5 {[%emt 0:10:15]} 10. Qe2 {[%emt 0:21:46]} O-O {[%emt 0:07:01]} 11. a3 {[%emt 0:04:30]} Be7 {[%emt 0:00:25]} 12. h3 {[%emt 0:05:46]} Re8 {[%emt 0:07:11]} 13. Rd1 {[%emt 0:05:37]} Bf8 {[%emt 0:08:53]} 14. Bb5 $11 {[%emt 0:12:04]} f6 {[%emt 0:21:14]} 15. Ng3 {[%emt 0:01:39]} Bg6 {[%emt 0:01:15]} 16. Bxc6 {[%emt 0:04:39]} bxc6 {[%emt 0:00:08]} 17. Nxd4 {[%emt 0:00:28]} Rxe5 {[%emt 0:05:06]} 18. Qc4 {[%emt 0:03:18]} Qe8 {[%emt 0:03:57]} 19. Bf4 {[%emt 0:06:16]} Bf7 {[%emt 0:04:33]} 20. Bxe5 {[%emt 0:00:15]} Ne3 {[%emt 0:01:15]} 21. Qc3 {[%emt 0:04:05]} Nxd1 {[%emt 0:00:12]} 22. Rxd1 {[%emt 0:00:02]} Qxe5 {[%emt 0:00:38]} 23. Re1 {[%emt 0:00:12]} Qc5 {[%emt 0:02:36]} 24. Qxc5 {[%emt 0:01:46]} Bxc5 {[%emt 0:00:03]} 25. Nxc6 {[%emt 0:00:28]} Re8 {[%emt 0:03:50]} 26. Rc1 {[%emt 0:01:18]} Bd6 {[%emt 0:09:02]} 27. Nf5 {[%emt 0:04:28]} Bf4 {[%emt 0:00:30]} 28. Ra1 {[%emt 0:00:03]} g6 {[%emt 0:04:43]} 29. g3 {[%emt 0:01:17]} Bg5 {[%emt 0:02:26]} 30. h4 {[%emt 0:01:19]} gxf5 {[%emt 0:01:27]} 31. hxg5 {[%emt 0:00:04]} fxg5 {[%emt 0:00:05]} 32. Nxa7 {[%emt 0:00:10]} Bd5 {[%emt 0:00:11]} 33. Nb5 {[%emt 0:00:42]} c6 {[%emt 0:02:18]} 34. Nc7 {[%emt 0:00:52]} Rb8 {[%emt 0:01:48]} 35. Nxd5 {[%emt 0:01:55]} cxd5 {[%emt 0:00:02]} 36. Rd1 {[%emt 0:00:37]} Rxb2 {[%emt 0:00:35]} 37. Rxd5 {[%emt 0:00:03]} Ra2 {[%emt 0:00:05]} 38. Rxf5 {[%emt 0:00:11]} Rxa3 {[%emt 0:00:04]} 39. Rxg5+ {[%emt 0:00:03]} Kf7 {[%emt 0:00:05]} 40. Kg2 {[%emt 0:00:00]} Kf6 {[%emt 0:00:00]} 41. Rb5 {[%emt 0:00:48]} Rc3 {[%emt 0:00:37]} 42. g4 {[%emt 0:00:47]} Kg6 {[%emt 0:00:13]} 43. f3 {[%emt 0:00:50]} Ra3 {[%emt 0:01:35]} 44. Kg3 {[%emt 0:00:09]} Ra4 {[%emt 0:00:14]} 45. Rb6+ {[%emt 0:00:23]} Kg7 {[%emt 0:00:07]} 46. g5 {[%emt 0:00:58]} Rc4 {[%emt 0:00:51]} 47. f4 {[%emt 0:00:10]} Rc5 {[%emt 0:00:26]} 48. Kg4 {[%emt 0:00:11]} Kf7 {[%emt 0:00:16]} 49. Rb7+ {[%emt 0:00:15]} Kg8 {[%emt 0:00:04]} 50. Re7 {[%emt 0:00:19]} Ra5 {[%emt 0:00:17]} 51. Re5 {[%emt 0:01:58]} Ra8 {[%emt 0:00:10]} 52. Rb5 {[%emt 0:00:25]} Kg7 {[%emt 0:01:11]} 53. Rb7+ {[%emt 0:00:36]} Kg8 {[%emt 0:00:04]} 54. Rb4 {[%emt 0:08:03]} Kg7 {[%emt 0:00:19]} 55. f5 {[%emt 0:00:15]} Ra7 {[%emt 0:00:35]} 56. Kh5 {[%emt 0:00:08]} Ra1 {[%emt 0:01:04]} 57. Rb7+ {[%emt 0:00:34]} Kg8 {[%emt 0:00:22]} 58. g6 {[%emt 0:01:42]} Rh1+ {[%emt 0:00:05]} 59. Kg5 {[%emt 0:00:03]} Rg1+ {[%emt 0:00:13]} 60. Kf6 {[%emt 0:00:02]} hxg6 {[%emt 0:00:09]} 61. Rg7+ {[%emt 0:00:12]} Kf8 {[%emt 0:00:15]} 62. Rxg6 {[%emt 0:01:35]} Ra1 {[%emt 0:00:07]} 63. Rg2 {[%emt 0:00:10]} Ra6+ {[%emt 0:00:08]} 64. Kg5 {[%emt 0:00:03]} Kf7 {[%emt 0:00:05]} 65. Rh2 {[%emt 0:00:14]} Kg7 {[%emt 0:00:17]} 66. Rb2 {[%emt 0:00:05]} Ra7 {[%emt 0:00:05]} 67. Rb6 {[%emt 0:00:19]} Rc7 {[%emt 0:00:11]} 68. Rh6 {[%emt 0:00:14]} Rc1 {[%emt 0:00:06]} 69. f6+ {[%emt 0:00:51]} Kg8 {[%emt 0:00:20]} 70. Rg6+ {[%emt 0:00:06]} Kf8 {[%emt 0:00:05]} 1/2-1/2

[Event "WYCC 2018 G16"]
[Site "Halkidiki"]
[Date "2018.10.23"]
[Round "5"]
[White "Salonika, Saina"]
[Black "Yurasova, Daria"]
[Result "1/2-1/2"]
[ECO "C43"]
[WhiteElo "2093"]
[BlackElo "2193"]
[Annotator "NA"]
[PlyCount "131"]
[EventDate "2018.10.20"]
[EventType "swiss"]
[EventCountry "GRE"]
[SourceTitle "playchess.com"]
[Source "ChessBase"]
[SourceQuality "1"]
[TimeControl "40/5400+30:1800+30"]

1. e4 {[%emt 0:00:00]} e5 {[%emt 0:01:23]} 2. Nf3 {[%emt 0:00:00]} Nf6 {[%emt 0:00:20]} 3. d4 {[%emt 0:00:37]} Nxe4 {[%emt 0:09:26]} 4. dxe5 {[%emt 0:06:08]} d5 {[%emt 0:00:35]} 5. Bd3 {[%emt 0:01:37]} Nc5 {[%emt 0:02:35]} 6. Be2 {[%emt 0:04:05]} Be7 {[%emt 0:00:22]} 7. Nc3 {[%emt 0:00:58]} c6 {[%emt 0:00:59]} 8. Nd4 {[%emt 0:06:02]} O-O {[%emt 0:03:57]} 9. O-O {[%emt 0:01:09]} f6 {[%emt 0:09:36]} 10. exf6 $11 {[%emt 0:07:55]} Bxf6 {[%emt 0:01:46]} 11. Be3 {[%emt 0:01:36]} Ne6 {[%emt 0:05:54]} 12. Nxe6 {[%emt 0:01:43]} Bxe6 {[%emt 0:00:02]} 13. Bc5 {[%emt 0:01:06]} Be7 {[%emt 0:09:29]} 14. Bxe7 {[%emt 0:05:54]} Qxe7 {[%emt 0:00:01]} 15. Bd3 {[%emt 0:00:09]} Qf7 {[%emt 0:01:55]} 16. Ne2 {[%emt 0:05:57]} c5 {[%emt 0:03:02]} 17. c3 {[%emt 0:01:02]} Nc6 {[%emt 0:06:31]} 18. Qc2 {[%emt 0:03:04]} g6 {[%emt 0:04:44]} 19. Ng3 {[%emt 0:01:00]} c4 20. Be2 {[%emt 0:00:38]} d4 {[%emt 0:12:36]} 21. cxd4 {[%emt 0:00:35]} Nxd4 {[%emt 0:00:01]} 22. Qe4 {[%emt 0:01:05]} Nxe2+ {[%emt 0:03:49]} 23. Qxe2 {[%emt 0:02:26]} Rae8 {[%emt 0:01:27]} 24. Qc2 {[%emt 0:00:58]} Bd5 {[%emt 0:00:21]} 25. Rad1 {[%emt 0:04:11]} b5 {[%emt 0:03:11]} 26. a3 {[%emt 0:00:24]} Qb7 {[%emt 0:01:42]} 27. f3 {[%emt 0:06:55]} Re6 {[%emt 0:02:55]} 28. Qd2 {[%emt 0:03:10]} Bc6 {[%emt 0:00:59]} 29. Rfe1 {[%emt 0:02:56]} Qb6+ {[%emt 0:01:47]} 30. Qf2 {[%emt 0:01:25]} Qxf2+ {[%emt 0:00:19]} 31. Kxf2 {[%emt 0:00:06]} Rfe8 {[%emt 0:00:18]} 32. Rxe6 {[%emt 0:00:43]} Rxe6 {[%emt 0:00:00]} 33. Rd8+ {[%emt 0:02:10]} Kf7 {[%emt 0:01:53]} 34. Ne2 {[%emt 0:01:22]} Be8 {[%emt 0:01:00]} 35. Nc3 {[%emt 0:02:44]} Rb6 {[%emt 0:01:01]} 36. Nd5 {[%emt 0:00:30]} Rb7 {[%emt 0:05:55]} 37. Rd6 {[%emt 0:02:28]} a5 {[%emt 0:02:06]} 38. Ke3 {[%emt 0:00:25]} b4 {[%emt 0:03:12]} 39. axb4 {[%emt 0:00:13]} axb4 {[%emt 0:00:01]} 40. Rb6 {[%emt 0:00:00]} Rxb6 {[%emt 0:00:00]} 41. Nxb6 {[%emt 0:00:55]} Bb5 {[%emt 0:00:34]} 42. Nd5 {[%emt 0:01:20]} c3 {[%emt 0:01:30]} 43. bxc3 {[%emt 0:00:06]} bxc3 {[%emt 0:03:36]} 44. Nxc3 {[%emt 0:00:13]} Bc6 {[%emt 0:00:10]} 45. Kf4 {[%emt 0:01:12]} h6 {[%emt 0:03:01]} 46. Ke5 {[%emt 0:00:11]} g5 {[%emt 0:02:03]} 47. Nd5 {[%emt 0:02:01]} Bb5 {[%emt 0:00:48]} 48. Ne3 {[%emt 0:03:51]} Be2 {[%emt 0:01:41]} 49. Nf5 {[%emt 0:01:59]} Kg6 {[%emt 0:02:32]} 50. Nd4 {[%emt 0:00:12]} Bd3 {[%emt 0:00:38]} 51. g3 {[%emt 0:00:43]} Bb1 {[%emt 0:05:00]} 52. f4 {[%emt 0:01:50]} gxf4 {[%emt 0:00:08]} 53. gxf4 {[%emt 0:00:05]} Kh5 {[%emt 0:00:46]} 54. f5 {[%emt 0:04:36]} Kh4 {[%emt 0:02:11]} 55. f6 {[%emt 0:01:36]} Bg6 {[%emt 0:00:06]} 56. Ne2 {[%emt 0:04:30]} Bf7 {[%emt 0:00:44]} 57. Nf4 {[%emt 0:00:42]} Kg4 {[%emt 0:00:15]} 58. h3+ {[%emt 0:00:52]} Kh4 {[%emt 0:00:30]} 59. Kd6 {[%emt 0:03:30]} Kg3 {[%emt 0:00:02]} 60. Ke7 {[%emt 0:00:24]} Bg8 {[%emt 0:00:02]} 61. Ne6 {[%emt 0:03:21]} Kxh3 {[%emt 0:00:26]} 62. Nd8 {[%emt 0:00:07]} Kg4 {[%emt 0:01:07]} 63. Nf7 {[%emt 0:01:00]} Kh5 {[%emt 0:00:57]} 64. Kf8 {[%emt 0:00:18]} Kg6 {[%emt 0:00:18]} 65. Nxh6 {[%emt 0:00:07]} Kxf6 {[%emt 0:00:07]} 66. Nxg8+ {[%emt 0:00:05]} 1/2-1/2

[Event "WYCC 2018 G16"]
[Site "Halkidiki"]
[Date "2018.10.23"]
[Round "5"]
[White "Rudzinska, Michalina"]
[Black "Hovhannisyan, Mane"]
[Result "1-0"]
[ECO "B18"]
[WhiteElo "2073"]
[BlackElo "1730"]
[Annotator "NA"]
[PlyCount "35"]
[EventDate "2018.10.20"]
[EventType "swiss"]
[EventCountry "GRE"]
[SourceTitle "playchess.com"]
[Source "ChessBase"]
[SourceQuality "1"]
[TimeControl "40/5400+30:1800+30"]

1. e4 {[%emt 0:00:00]} c6 {[%emt 0:00:00]} 2. d4 {[%emt 0:00:00]} d5 {[%emt 0:00:00]} 3. Nc3 {[%emt 0:00:00]} dxe4 {[%emt 0:00:00]} 4. Nxe4 {[%emt 0:00:00]} Bf5 {[%emt 0:00:00]} 5. Ng3 {[%emt 0:00:00]} Bg6 {[%emt 0:00:00]} 6. Bc4 {[%emt 0:00:07] LiveBook: 756 Games} e6 {[%emt 0:00:00]} 7. N1e2 {[%emt 0:00:08]} Bd6 {[%emt 0:00:19]} 8. Nf4 {[%emt 0:00:15]} Qc7 {[%emt 0:09:21]} 9. Ngh5 {[%emt 0:00:43]} Kf8 {[%emt 0:23:26]} 10. Qf3 {[%emt 0:04:31]} Qe7 {[%emt 0:01:55]} 11. Nxe6+ {[%emt 0:06:46]} Ke8 {[%emt 0:00:12]} 12. Nhxg7+ {[%emt 0:00:10]} Kd7 {[%emt 0:00:11]} 13. Bg5 {[%emt 0:00:13]} f6 {[%emt 0:00:54]} 14. Bf4 {[%emt 0:01:24]} Bxc2 {[%emt 0:05:00]} 15. O-O $18 {[%emt 0:00:29]} Kc8 {[%emt 0:05:12]} 16. Rfe1 {[%emt 0:03:18]} b6 {[%emt 0:24:01]} 17. Ba6+ {[%emt 0:02:56]} Nxa6 18. Qxc6+ {[%emt 0:00:05]} 1-0

[Event "WYCC 2018 G16"]
[Site "Halkidiki"]
[Date "2018.10.23"]
[Round "5"]
[White "Srdanovic, Jovana"]
[Black "Solozhenkina, Elizaveta"]
[Result "1-0"]
[ECO "A46"]
[WhiteElo "2072"]
[BlackElo "2276"]
[Annotator "NA"]
[PlyCount "113"]
[EventDate "2018.10.20"]
[EventType "swiss"]
[EventCountry "GRE"]
[SourceTitle "playchess.com"]
[Source "ChessBase"]
[SourceQuality "1"]
[TimeControl "40/5400+30:1800+30"]

1. d4 {[%emt 0:00:00]} Nf6 {[%emt 0:00:00]} 2. Nf3 {[%emt 0:00:00]} e6 {[%emt 0:00:00]} 3. Bg5 {[%emt 0:00:00]} h6 {[%emt 0:00:10]} 4. Bh4 {[%emt 0:00:07]} d6 {[%emt 0:06:40]} 5. c3 {[%emt 0:03:56] A46: 1 d4 Nf6 2 Nf3 e6: Torre, London and Colle Systems} (5. h3 d5 6. Nbd2 c5 7. e3 Nc6 8. c3 Bd6 9. Bd3 c4 10. Bc2 g5 11. Bg3 Bxg3 12. fxg3 Qd6 {1-0 (38) Korobov,A (2678)-Fedoseev,V (2706) Poikovsky 2018}) 5... g5 {[%emt 0:06:16]} 6. Bg3 {[%emt 0:03:15]} Nh5 {[%emt 0:00:09]} 7. e3 {[%emt 0:01:30]} Bg7 {[%emt 0:00:12]} 8. Nfd2 {[%emt 0:03:29]} Nxg3 {[%emt 0:00:50]} 9. hxg3 {[%emt 0:00:07]} b6 {[%emt 0:08:44]} 10. Qf3 {[%emt 0:06:32]} d5 $146 {[%emt 0:00:20]} ({Predecessor:} 10... c6 11. Bc4 Bb7 12. Bd3 Nd7 13. Na3 {1-0 (46) Svaljek,R (1958)-Bogdanic,K (1842) Sibenik 2016}) 11. a4 {[%emt 0:00:42]} c5 {[%emt 0:07:02]} 12. Qh5 {[%emt 0:10:05]} Nd7 {[%emt 0:14:29]} 13. Bb5 {[%emt 0:05:07]} O-O {[%emt 0:02:33]} 14. Bxd7 {[%emt 0:01:38]} Bxd7 {[%emt 0:00:14]} 15. f4 {[%emt 0:00:05]} Be8 {[%emt 0:03:44]} 16. Qe2 {[%emt 0:09:43]} f6 {[%emt 0:07:46]} 17. a5 {[%emt 0:06:56]} Bg6 {[%emt 0:02:42]} 18. Qb5 {[%emt 0:08:30]} Qc7 {[%emt 0:05:16]} 19. O-O {[%emt 0:04:59]} Rfb8 {[%emt 0:10:01]} 20. Qa6 {[%emt 0:10:11]} c4 {[%emt 0:06:06]} 21. Na3 {[%emt 0:01:05]} Be8 {[%emt 0:02:04]} 22. Nc2 {[%emt 0:02:37]} Bd7 {[%emt 0:04:27]} 23. axb6 {[%emt 0:02:26]} Qxb6 {[%emt 0:01:13]} 24. Qxb6 {[%emt 0:01:55]} Rxb6 {[%emt 0:00:35]} 25. Ra2 {[%emt 0:00:44]} a5 {[%emt 0:01:42]} 26. e4 {[%emt 0:01:59]} a4 {[%emt 0:04:46]} 27. f5 {[%emt 0:01:30]} dxe4 {[%emt 0:02:48]} 28. Nxc4 {[%emt 0:00:34]} Rc6 {[%emt 0:00:56]} 29. N4e3 {[%emt 0:00:40]} exf5 {[%emt 0:00:38]} 30. Nxf5 {[%emt 0:01:34]} Bf8 {[%emt 0:00:41]} 31. Nfe3 {[%emt 0:01:02]} Ra5 {[%emt 0:01:24]} 32. b4 {[%emt 0:01:11]} axb3 {[%emt 0:00:30]} 33. Rxa5 {[%emt 0:00:08]} bxc2 {[%emt 0:00:03]} 34. Nd5 {[%emt 0:05:31]} Bg4 {[%emt 0:01:05]} 35. Rc1 {[%emt 0:01:11]} Bd1 {[%emt 0:00:12]} 36. Ne3 {[%emt 0:00:36]} Rxc3 {[%emt 0:00:07]} 37. Nxd1 {[%emt 0:00:07]} cxd1=Q+ {[%emt 0:00:19]} 38. Rxd1 {[%emt 0:00:06]} Rxg3 {[%emt 0:00:45]} 39. Kf2 {[%emt 0:00:47]} Rb3 {[%emt 0:01:13]} 40. Re1 {[%emt 0:00:00]} Rb2+ {[%emt 0:00:00]} 41. Re2 {[%emt 0:03:03]} Rb7 $16 {[%emt 0:06:48]} 42. Rxe4 {[%emt 0:00:38]} Rd7 {[%emt 0:01:57]} 43. Ke3 {[%emt 0:01:59]} Kf7 {[%emt 0:01:31]} 44. g4 {[%emt 0:01:19]} Bd6 {[%emt 0:02:02]} 45. Ra6 {[%emt 0:00:38]} Bf4+ {[%emt 0:00:53]} 46. Kd3 {[%emt 0:03:01]} Bd6 {[%emt 0:01:06]} 47. Kc4 {[%emt 0:00:32]} Rc7+ {[%emt 0:00:58]} 48. Kd5 {[%emt 0:00:33]} Be7 {[%emt 0:00:08]} 49. Ree6 {[%emt 0:00:08]} Rd7+ {[%emt 0:00:31]} 50. Ke4 {[%emt 0:00:14]} Rb7 {[%emt 0:04:26]} 51. Reb6 {[%emt 0:02:09]} Rc7 {[%emt 0:00:59]} 52. Rb8 {[%emt 0:02:11]} Rc1 {[%emt 0:03:59]} 53. Ra7 {[%emt 0:05:11]} Re1+ {[%emt 0:00:13]} 54. Kd3 {[%emt 0:01:07]} f5 {[%emt 0:01:39]} 55. gxf5 {[%emt 0:01:05]} g4 {[%emt 0:00:36]} 56. Rb6 {[%emt 0:01:07]} g3 {[%emt 0:03:01]} 57. Rg6 {[%emt 0:01:34]} 1-0

[Event "WYCC 2018 G16"]
[Site "Halkidiki"]
[Date "2018.10.23"]
[Round "5"]
[White "Urh, Zala"]
[Black "Berdnyk, Mariia"]
[Result "1/2-1/2"]
[ECO "E90"]
[WhiteElo "2066"]
[BlackElo "2179"]
[Annotator "NA"]
[PlyCount "134"]
[EventDate "2018.10.20"]
[EventType "swiss"]
[EventCountry "GRE"]
[SourceTitle "playchess.com"]
[Source "ChessBase"]
[SourceQuality "1"]
[TimeControl "40/5400+30:1800+30"]

1. d4 {[%emt 0:00:00]} Nf6 {[%emt 0:00:00]} 2. c4 {[%emt 0:00:00]} g6 {[%emt 0:00:00]} 3. Nc3 {[%emt 0:00:00]} Bg7 {[%emt 0:00:00]} 4. e4 {[%emt 0:00:00]} d6 {[%emt 0:00:00]} 5. Nf3 {[%emt 0:00:41]} O-O {[%emt 0:00:00]} 6. h3 {[%emt 0:00:09]} e5 {[%emt 0:00:00]} 7. d5 {[%emt 0:00:28]} a5 {[%emt 0:00:00]} 8. g4 {[%emt 0:01:43]} Na6 {[%emt 0:00:01]} 9. Be3 {[%emt 0:01:07]} Nd7 {[%emt 0:01:05]} 10. Nd2 {[%emt 0:03:57]} Ndc5 {[%emt 0:01:03]} 11. Nb3 {[%emt 0:10:42]} Bd7 {[%emt 0:14:58]} 12. Nxc5 {[%emt 0:05:01]} Nxc5 {[%emt 0:00:23]} 13. Qc2 {[%emt 0:03:23]} a4 {[%emt 0:06:20]} 14. O-O-O $11 {[%emt 0:03:06]} a3 {[%emt 0:02:22]} 15. b3 {[%emt 0:00:52]} Na6 {[%emt 0:02:05]} 16. Kb1 {[%emt 0:02:28]} Qe7 {[%emt 0:11:46]} 17. Qd2 {[%emt 0:03:19]} Rfc8 {[%emt 0:05:10]} 18. f3 {[%emt 0:06:21]} Qf8 {[%emt 0:05:42]} 19. h4 {[%emt 0:08:08]} h6 {[%emt 0:02:50]} 20. Bh3 {[%emt 0:02:11]} Rd8 {[%emt 0:00:45]} 21. Rh2 {[%emt 0:01:21]} Be8 {[%emt 0:02:40]} 22. Rg1 {[%emt 0:18:33]} c5 {[%emt 0:05:23]} 23. Bf1 {[%emt 0:02:50]} Nc7 {[%emt 0:01:10]} 24. Bd3 {[%emt 0:01:25]} Rdb8 {[%emt 0:02:00]} 25. Qe2 {[%emt 0:01:17]} b5 {[%emt 0:05:59]} 26. cxb5 {[%emt 0:00:43]} Rb7 {[%emt 0:00:45]} 27. Rc1 {[%emt 0:00:55]} Rab8 {[%emt 0:01:13]} 28. Bc4 {[%emt 0:02:36]} Nxb5 {[%emt 0:04:04]} 29. Nxb5 {[%emt 0:01:24]} Bxb5 {[%emt 0:00:05]} 30. Bxb5 {[%emt 0:00:05]} Rxb5 {[%emt 0:00:04]} 31. h5 {[%emt 0:04:34]} g5 {[%emt 0:00:34]} 32. Rc4 {[%emt 0:01:54]} Qe8 {[%emt 0:01:46]} 33. Rh1 {[%emt 0:01:23]} Ra8 {[%emt 0:05:05]} 34. Qd3 {[%emt 0:01:39]} Bf6 {[%emt 0:00:52]} 35. Kc2 {[%emt 0:01:10]} Bd8 {[%emt 0:03:10]} 36. Bd2 {[%emt 0:00:09]} Rb7 {[%emt 0:01:56]} 37. Rd1 {[%emt 0:03:42]} Ba5 {[%emt 0:01:50]} 38. Ra4 {[%emt 0:00:54]} Bxd2 {[%emt 0:00:35]} 39. Rxa8 {[%emt 0:00:01]} Qxa8 {[%emt 0:00:07]} 40. Kxd2 {[%emt 0:00:00]} Rb4 {[%emt 0:00:00]} 41. Ke3 {[%emt 0:16:03]} Rd4 {[%emt 0:07:08]} 42. Qc2 {[%emt 0:01:11]} Qa7 {[%emt 0:04:15]} 43. Ke2 {[%emt 0:12:26]} Qa6+ {[%emt 0:00:58]} 44. Ke3 {[%emt 0:00:11]} Qb6 {[%emt 0:00:40]} 45. Ke2 {[%emt 0:00:31]} Qb5+ {[%emt 0:02:10]} 46. Ke3 {[%emt 0:00:05]} Kg7 {[%emt 0:10:05]} 47. Rc1 {[%emt 0:01:42]} Qa5 {[%emt 0:02:41]} 48. Ke2 {[%emt 0:02:58]} Qd8 {[%emt 0:01:00]} 49. Qc3 {[%emt 0:00:41]} Qb6 {[%emt 0:01:27]} 50. Qc2 {[%emt 0:00:14]} Qb5+ {[%emt 0:00:26]} 51. Ke3 {[%emt 0:00:04]} Kh7 {[%emt 0:04:55]} 52. Qc3 {[%emt 0:00:33]} Qb6 {[%emt 0:01:08]} 53. Ke2 {[%emt 0:00:06]} Qa6+ {[%emt 0:00:06]} 54. Ke3 {[%emt 0:00:15]} Qa8 {[%emt 0:00:22]} 55. Ke2 {[%emt 0:01:08]} Qd8 {[%emt 0:02:55]} 56. Rc2 {[%emt 0:00:52]} f5 {[%emt 0:01:39]} 57. exf5 {[%emt 0:02:25]} Qa8 {[%emt 0:01:15]} 58. Rd2 {[%emt 0:00:20]} Qxd5 {[%emt 0:00:53]} 59. Rxd4 {[%emt 0:00:02]} exd4 {[%emt 0:02:11]} 60. Qd3 {[%emt 0:00:13]} Kg7 {[%emt 0:02:02]} 61. Qe4 {[%emt 0:00:33]} Qf7 {[%emt 0:00:29]} 62. Kd3 {[%emt 0:00:42]} Qd7 {[%emt 0:02:28]} 63. Kd2 {[%emt 0:01:25]} d5 {[%emt 0:00:53]} 64. Qe5+ {[%emt 0:00:13]} Kf7 {[%emt 0:00:22]} 65. Qh8 {[%emt 0:00:57]} Qd6 {[%emt 0:00:47]} 66. Qh7+ {[%emt 0:00:08]} Kf8 {[%emt 0:00:34]} 67. Qh8+ {[%emt 0:00:08]} Kf7 {[%emt 0:00:56]} 1/2-1/2